Cogmind - Beta 17 --- EXPLORER MODE // 2026.08.17 @ 23:01:06 // AFD2018/Launchers Player: Goose Result: Destroyed by G-34 Mercenary with Small Laser Performance ------------- Evolutions (0) 0 Regions Visited (2) 400 Robots Destroyed (2) 10 Value Destroyed (91) 91 Prototype IDs (1) 20 Alien Tech Used (0) 0 Bonus (0) 0 TOTAL SCORE: 521 Bonus ------- None Cogmind --------- Core Integrity 0/250 Matter 168/300 Energy 100/100 System Corruption 2% Temperature Cool (6) Movement Core (50) Location -10/Mines Parts ------- > --- POWER (1) -------- (None) > --- PROPULSION (2) --- (None) > --- UTILITY (2) ------ (None) > --- WEAPON (3) ------- (None) > --- INVENTORY (5) ---- Experimental Sensor Array Grenade Launcher Grenade Launcher Peak State ------------ > --- POWER ------------ (None) > --- PROPULSION ------- (None) > --- UTILITY ---------- Experimental Sensor Array > --- WEAPON ----------- Grenade Launcher Grenade Launcher Grenade Launcher > --- INVENTORY -------- (None) [Rating: 12] Favorites ----------- Power None Propulsion None Utility Experimental Sensor Array Device Experimental Sensor Array Weapon Grenade Launcher Launcher Grenade Launcher Build | -11 -10 -10 ------- Run | Yrd Mat Min Slots Evolved 1 | . 1 . Power . | . . . Propulsion . | . . . Utility . | . . . Weapon 1 | . 1 . Parts Attached 4 | 2 1 1 Power . | . . . Engine . | . . . Core . | . . . Reactor . | . . . Propulsion . | . . . Treads . | . . . Leg . | . . . Wheel . | . . . Hover . | . . . Flight . | . . . Utility 1 | . . 1 Device 1 | . . 1 Storage . | . . . Processor . | . . . Hackware . | . . . Protection . | . . . Artifact . | . . . Weapon 3 | 2 1 . Energy Gun . | . . . Energy Cannon . | . . . Ballistic Gun . | . . . Ballistic Cannon . | . . . Launcher 3 | 2 1 . Special Weapon . | . . . Impact Weapon . | . . . Slashing Weapon . | . . . Piercing Weapon . | . . . Special Melee Weapon . | . . . Unidentified Prototypes 1 | . . 1 Parts Lost 1 | . . 1 Power . | . . . Propulsion . | . . . Utility . | . . . Weapon 1 | . . 1 Highest Loss Streak 1 | . . 1 To Critical Strikes . | . . . Average Backups . | . . . Power . | . . . Propulsion . | . . . Utility . | . . . Weapon . | . . . Tool/Special . | . . . Unused Backups . | . . . Power . | . . . Propulsion . | . . . Utility . | . . . Weapon . | . . . Tool/Special . | . . . Average Slot Usage (%) 32 | . 32 32 Device 3 | . . 3 Launcher 29 | . 32 28 Peak Build Rating 12 | 2 3 12 Average Rating 4 | 1 2 5 On Entrance 1 | . 2 3 Avg Prop Armor Cover (%) . | . . . Naked Turns 32 | . . 32 Heaviest Build 10 | 6 9 10 Greatest Support 3 | 3 3 3 Greatest Overweight (x) 3 | 1 2 3 Average Overweight (x) 1 | . 1 1 Largest Inventory Capacity 5 | 5 5 5 Average Capacity 5 | 5 5 5 Most Carried 3 | . . 3 Average Carried . | . . . Final Capacity 5 | 5 5 5 Final Carried 3 | . . 3 Class Distribution -------------------- 44% | Hacker-Bomber 31% | Hacker-Mutant 24% | Hacker-Skirmisher Dominant Class ---------------- Hacker-Bomber | -10/Materials Hacker-Bomber | -10/Mines Resources | -11 -10 -10 ----------- Run | Yrd Mat Min Matter Collected . | . . . Remotely . | . . . Salvage Created 67 | . . 67 Parts 3 | . . 3 Haulers Intercepted . | . . . Recyclers Shooed . | . . . Parts Field Recycled . | . . . Retrieved Matter . | . . . Parts Self-Destructed . | . . . Prevented . | . . . Parts Restored . | . . . Kills | -11 -10 -10 ------- Run | Yrd Mat Min Combat Hostiles Destroyed 2 | . . 2 AOE 2 | . . 2 Classes Destroyed 1 | . . 1 Grunt 2 | . . 2 Best Kill Streak 2 | . . 2 Combat Bots Only 2 | . . 2 Max Kills in Single Turn 1 | . . 1 Gunslinging . | . . . Exploded 1 | . . 1 Melee . | . . . Uniques/NPCs Destroyed . | . . . Combat | -11 -10 -10 -------- Run | Yrd Mat Min Hostile Shots Fired 51 | . . 51 Missed 19 | . . 19 Hits 32 | . . 32 Projectile 32 | . . 32 Damage Taken 318 | . . 318 Core 250 | . . 250 Absorbed by Shields . | . . . Ignored by Resistances 159 | . . 159 Core Remaining (%) 100 | 100 . . Volleys Fired 2 | . . 2 Largest 3 | . . 3 Hottest 90 | . . 90 Shots Fired 6 | . . 6 Gun . | . . . Cannon . | . . . Launcher 6 | . . 6 Special . | . . . Kinetic . | . . . Thermal . | . . . Explosive 6 | . . 6 Electromagnetic . | . . . Robot Hit Streak 1 | . . 1 Robot Miss Streak . | . . . Penetration Max . | . . . Secondary Targets . | . . . Shots Hit Robots 1 | . . 1 Core Hits 10 | . . 10 Critical Kills . | . . . Critical Parts Destroyed . | . . . Critical Strikes . | . . . Melee Attacks . | . . . Impact . | . . . Slashing . | . . . Piercing . | . . . Sneak Attacks . | . . . Combat Hostiles . | . . . Follow-up Attacks . | . . . Damage Inflicted 222 | . . 222 Guns . | . . . Cannons . | . . . Explosions 111 | . . 111 Melee . | . . . Ramming 111 | . . 111 Kinetic . | . . . Thermal . | . . . Explosive 111 | . . 111 Electromagnetic . | . . . Impact . | . . . Slashing . | . . . Piercing . | . . . Highest Corruption 2 | . . 2 Average Corruption 2 | . . 2 Corruption Purged . | . . . Corruption Blocked . | . . . Overload Shots . | . . . Overflow Damage . | . . . Projectiles . | . . . Explosions . | . . . Melee . | . . . Knockbacks 1 | . . 1 Impact 1 | . . 1 Kinetic . | . . . Secondary . | . . . Self-Inflicted Damage 48 | . . 48 Shots . | . . . Rammed 41 | . . 41 Targets Rammed 41 | . . 41 Kicked . | . . . Crushed . | . . . Highest Temperature 21 | . . 21 Average Temperature 11 | . . 11 Received Heat Transfer 237 | . . 237 Siege Activations . | . . . Martial Activations . | . . . Shielding Activations . | . . . Robots Disrupted . | . . . Combat Hostiles . | . . . Robots Corrupted . | . . . Combat Hostiles . | . . . Parts Fried . | . . . Impact Corruptions . | . . . Robots Melted . | . . . Combat Hostiles . | . . . Parts Melted . | . . . Heat Transferred . | . . . Parts Sabotaged . | . . . Parts Stolen . | . . . Parts Stripped . | . . . Power Chain Reactions . | . . . Alert | -11 -10 -10 ------- Run | Yrd Mat Min Maximum Alert Level . | . . . Low Security (%) 100 | 100 100 100 Level 1 . | . . . Level 2 . | . . . Level 3 . | . . . Level 4 . | . . . Level 5 . | . . . High Security . | . . . Max Security . | . . . Peak Influence 73 | . . 73 Initial . | . . . Average 7 | . . 8 Influence Increases 73 | . . 73 Destroy 0b10 Robot/C 40 | . . 40 Destroy Leader 10 | . . 10 Disable Machine 4 | . . 4 Destroy Structure 19 | . . 19 Influence Decreases 73 | . . 73 Time Decay 73 | . . 73 Squads Dispatched . | . . . Investigation . | . . . Extermination . | . . . Reinforcement . | . . . Assault . | . . . Garrison . | . . . Intercept . | . . . Searches Triggered . | . . . Construction Impeded . | . . . Haulers Reinforced . | . . . Active Scanning Responses . | . . . Cargo Convoy Interrupts . | . . . Stealth | -11 -10 -10 --------- Run | Yrd Mat Min Distress Signals . | . . . Communications Jammed . | . . . Distress Signals . | . . . Times Spotted 4 | . . 4 Peak Tracking Total 2 | . . 2 Tactical Retreats . | . . . Traps | -11 -10 -10 ------- Run | Yrd Mat Min Traps Triggered . | . . . Indirectly . | . . . Trap Hack Attempts . | . . . Triggered . | . . . Disarmed . | . . . Reprogrammed . | . . . Reused . | . . . Traps Extracted . | . . . Installed . | . . . Triggered . | . . . Machines | -11 -10 -10 ---------- Run | Yrd Mat Min Machines Disabled 1 | . . 1 Max in Single Turn 1 | . . 1 Machines Repaired . | . . . Machines Dismantled . | . . . Machines Sabotaged . | . . . Overloaded Fab Kills . | . . . Hacking | -11 -10 -10 --------- Run | Yrd Mat Min Machines Accessed . | . . . Terminals . | . . . Fabricators . | . . . Repair Stations . | . . . Recycling Units . | . . . Scanalyzers . | . . . Garrison Access . | . . . Total Hacks . | . . . Successful . | . . . Failed . | . . . Catastrophic . | . . . Database Lockouts . | . . . Manual . | . . . Terminals . | . . . Fabricators . | . . . Repair Stations . | . . . Recycling Units . | . . . Scanalyzers . | . . . Garrison Access . | . . . Terminal Hacks . | . . . Fabricator Hacks . | . . . Repair Station Hacks . | . . . Recycling Unit Hacks . | . . . Scanalyzer . | . . . Garrison Access Hacks . | . . . Unauthorized Hacks . | . . . Terminals . | . . . Fabricators . | . . . Repair Stations . | . . . Recycling Units . | . . . Scanalyzers . | . . . Garrison Access . | . . . Data Cores Recovered . | . . . Used . | . . . Hacking Detections . | . . . Full Trace Events . | . . . Feedback Events . | . . . Feedback Blocked . | . . . Robot Schematics Acquired . | . . . Robots Built . | . . . Authchips . | . . . Time . | . . . Total Robot Build Rating . | . . . Part Schematics Acquired . | . . . Parts Built . | . . . Authchips . | . . . Time . | . . . Total Part Build Rating . | . . . Part Studies Acquired . | . . . Parts Repaired . | . . . Time . | . . . Parts Recycled . | . . . Recycled Matter . | . . . Retrieved Matter . | . . . Retrieved Components . | . . . Parts Scanalyzed . | . . . Part Schematics Acquired . | . . . Parts Damaged . | . . . Bothacking | -11 -10 -10 ------------ Run | Yrd Mat Min Used RIF Installer . | . . . Robots Hacked . | . . . Non-combat . | . . . Combat . | . . . Robot Hacks Applied . | . . . Relay Couplers Released . | . . . Fabnet Peak Effective % . | . . . Robots Rewired . | . . . Allies Hacked . | . . . Hacks Repelled . | . . . Allies | -11 -10 -10 -------- Run | Yrd Mat Min Total Allies . | . . . Largest Group . | . . . Highest-Rated Group . | . . . Highest-Rated Ally . | . . . Total Orders . | . . . Ally Attacks . | . . . Total Damage . | . . . Kills . | . . . Allies Corrupted . | . . . Allies Melted . | . . . Intel | -11 -10 -10 ------- Run | Yrd Mat Min Active Infowar (turns) 133 | . . 133 Sensors 133 | . . 133 Robot Analysis Total . | . . . Derelict Logs Recovered . | . . . Drone Launches . | . . . Drone Recoveries . | . . . Exploration | -11 -10 -10 ------------- Run | Yrd Mat Min Turns Passed 519 | 25 71 423 Spaces Moved 419 | 25 52 342 Core 419 | 25 52 342 Treads . | . . . Legs . | . . . Wheels . | . . . Hover . | . . . Flight . | . . . Fastest Speed 50 | 50 100 50 Average Speed 111 | 90 136 109 Slowest Speed 200 | 100 150 200 Overloaded Moves . | . . . Propulsion Burnouts . | . . . Robots Hopped . | . . . Potential Cave-ins . | . . . Cave-ins Triggered . | . . . Exploration Rate (%) 30 | 3 11 77 Regions Visited 2 Branch Regions 1 Pre-discovered Areas . | . . . Known Exits Taken 2 | 1 1 . Unknown Exits Taken . | . . . Scrap Searched . | . . . Spaces Dug . | . . . Terrain Destroyed 28 | . . 28 Melee . | . . . Projectile . | . . . AOE 28 | . . 28 Terrain Rammed . | . . . Walls Destroyed . | . . . Machines Disabled . | . . . Actions | -11 -10 -10 --------- Run | Yrd Mat Min Total 467 | 26 52 389 Wait . | . . . Move 417 | 24 51 342 Hop . | . . . Pick Up . | . . . Fast Attach 4 | 2 1 1 Attach . | . . . Detach 3 | . . 3 Swap . | . . . Drop . | . . . Fire 2 | . . 2 Melee . | . . . Ram 41 | . . 41 Kick . | . . . Crush . | . . . Escape Stasis . | . . . Rewire . | . . . Trap . | . . . Miscellaneous . | . . . Route ------- -11/Scrapyard -10/Materials -10/Mines (discovered 2 exits: *Mat x2) History --------- Turn | Location | Event 11 | -11/Scrapyard | Identified exit to Materials 11 | -11/Scrapyard | Discovered exit to Materials (range 16) 26 | -11/Scrapyard | Entered Materials 26 | -10/Materials | Evolved 1 slot: Weapon x1 84 | -10/Materials | Identified exit to Mines 84 | -10/Materials | Discovered exit to Mines (range 8) 97 | -10/Materials | Entered Mines 221 | -10/Mines | Found a damaged Exp. Sensor Array with a note attached 224 | -10/Mines | Found Prototype Device 224 | -10/Mines | Identified Exp. Sensor Array 353 | -10/Mines | Found a Scrap Suit stashed away for nefarious purposes 439 | -10/Mines | Identified exit to Materials 439 | -10/Mines | Discovered exit to Materials (range 9) 455 | -10/Mines | Discovered exit to Materials (range 11) 503 | -10/Mines | Core integrity fell below 50% 515 | -10/Mines | Core integrity fell below 20% 520 | -10/Mines | Destroyed by G-34 Mercenary with Small Laser Last Messages --------------- one out! Take this to the hideout, the fools near Old Recycling think they can use this tech to beat 0b10 one day, and now we just have to find a way to safely deliver this to MAIN.C to get on their good side and convince them to let us into the system." 00439_ EXIT=FOUND: MATERIALS 00472_ Slammed into G-47 Trooper. 00476_ Grenade Launcher broken. 00476_ Destabilizing: Short circuit. 00477_ Slammed into G-47 Trooper. 00478_ Destabilizing: System corrupted (+2). 00479_ Slammed into G-47 Trooper. 00488_ Broken Grenade Launcher destroyed. 00489_ Slammed into G-47 Trooper. 00493_ Slammed into G-34 Mercenary. 00500_ Destabilizing: Core damaged (-2). 00501_ Slammed into G-34 Mercenary. 00502_ Destabilizing: Core damaged (-10). 00504_ Slammed into G-34 Mercenary. 00517_ G-34 Mercenary knocked back. 00518_ Slammed into G-34 Mercenary. Map ----- +----------------------------------------------------+ | | | | | | | | | | | | | | | ??????????????????????????????????????? | | ??????????????????????????????????????? | | ??????????????????????????????????????? | | ??????????????????????????????????????? | | ??????? #?????????????????????????????? | | ?????? ###??????????????????????????? | | ?????? #??#??????????????????????? | | ??????? ## ??????????????????????? | | ???????? ??????????????????????? | | ????????? ??????????????????????? | | ?????????# ???????????????????????? | | ????????## ???????????????????????? | | ????????# #???????????????????????? | | ????????# ##???###????????????????? | | ????????# #### ##???????????????? | | ?????????# #???????????????? | | ??????????# #???????????????? | | ?????????## #????????????????? | | ????????## g@ ##????????????????? | | ?????#### g #?????????????????? | | ?????# ##????????????????? | | ?????# ##???????????????? | | ?????# ####### #???????????????? | | ?????# #?????## #?????????? | | ?????# ############# ##?????????? | | ?????# #??????# ####??????????# | | ?????# ##### #???????####????????????## | | ?????# #???# #??????????????????????## | | ?????# #???# #????########?????????## | | ?????# #???# #????# #?????????# | | ???### #???# ###### < #?????????# | | ??## ###?# #?????????# | | ??# ########## #?????????## | | ??# < #???????# #??????????## | | ??# ##??????# """ #???????????## | | ??## #??????# """ #????????????# | | ???#### #??????# """ #????????????? | | ??????### #??????# #????????????? | | ????????# #??????########????????????? | | ????????# #??????####????????????????? | | ??????### #????### ##???????????????? | | ?????## #????# ##??????????????? | | ????## #????# #??#####???????? | +----------------------------------------------------+ Best States ------------- Heat Dissipation 25 Energy Generation 5 Energy Capacity 100 Matter Stores 165 Matter Capacity 300 Sight Range 16 Robot Scan Range 20 Terrain Scan Density 10 Resistance: KI 35 Resistance: TH 35 Resistance: EX 35 Resistance: EM 35 Resistance: I 35 Resistance: S 35 Resistance: P 35 Evasion (%) 50 Offensive Hacking 20 Item Schematics ----------------- None Robot Schematics ------------------ None Fabricated ------------ Nothing Repaired ---------- Nothing Studied --------- None Alien Tech Used ----------------- None Achievements -------------- None Challenges ------------ None Game ------ Seed SubatomicCompanionReactor Manual? 0 Play Time 00:06:02 Cumulative 523.9 hours Start 2026.08.17 @ 22:56:50 End 2026.08.17 @ 23:01:06 Sessions 1 Manual Loads 0 Difficulty Explorer Special Mode AFD2018/Launchers Game No. 28 Rogue 5 Adventurer 1 Explorer 22 Win Type - Total 5 Types 5/0/0/0/0/0/0/0/0/0 Lore% 52 Gallery% 53 Achievement% 49 Wizard Run 0 Options --------- Layout 0 ASCII 0 Keyboard 0 Movement Arrows Keybinds 0 Fullscreen 2 Font 18/X11 Map View 38x25 Zoom Use 97% Tactical HUD 1 Map Filters NONE Filters NONE Steam 1 RUN: a1160b79-f62b-48ed-997f-a1f8d33147d8